bitfinex/quotes_ETHUSD_20250404
["timestamp","ask_amount","ask_price","bid_price","bid_amount"]
[1743772320588,12.30856,1784.9,1784.5,11.20733]
[1743772320884,6.706,1784.9,1784.6,5.60329]
[1743772321046,17.91153,1784.9,1784.5,5.60371]
[1743772321246,6.706,1784.9,1784.5,5.60368]
[1743772321446,12.30865,1784.9,1784.5,6.164048]
[1743772321755,6.706,1784.9,1784.6,5.60347]
[1743772322494,5.60325,1784.7,1784.4,5.60406]
[1743772322790,6.40701,1784.6,1784.2,11.20938]
[1743772323089,0.8035,1784.6,1784.4,5.60411]
[1743772323298,0.8035,1784.6,1784.4,5.60408]
[1743772323473,0.8035,1784.6,1784.3,11.20871]
[1743772323788,12.651695,1784.6,1784.2,5.60469]
[1743772324083,12.651695,1784.6,1784.2,6.12439431]
[1743772324444,5.60382,1784.5,1784.2,6.12439431]
[1743772324648,5.60382,1784.5,1784.1,11.26004]
[1743772324845,5.60382,1784.5,1784.2,5.60473]
[1743772325085,6.40724,1784.6,1784.2,11.20935]
[1743772325292,6.40717,1784.6,1784.2,5.60462]
[1743772325793,5.60381,1784.5,1784.1,5.6549]
[1743772326300,6.3766,1784.4,1784.1,0.05]
[1743772326589,7.01416,1784.4,1784.1,0.05]
[1743772327096,0.7722,1784.4,1784.1,5.65497]
[1743772327589,6.37632,1784.4,1784.1,5.65497]
[1743772327942,5.60455,1784.3,1784.1,0.05]
[1743772328236,0.12924659,1784.2,1784.1,0.05]
[1743772328598,5.73399659,1784.2,1784.1,0.05]
[1743772328799,6.86785125,1784.2,1784.1,0.05]
[1743772329810,1.26310125,1784.2,1784.1,0.05]
[1743772330014,0.12924659,1784.2,1784.1,0.05]
[1743772330236,7.4712,1784.4,1784.1,0.05]
[1743772330440,0.13106291,1784.2,1784.1,0.05]
[1743772330642,7.4712,1784.4,1784.1,5.65493]
[1743772330831,0.7837,1784.6,1784.3,5.60428]
[1743772331031,6.3872,1784.6,1784.2,5.60473]
[1743772331746,11.9909,1784.6,1784.1,5.65503]
[1743772331944,5.60408,1784.5,1784.1,0.05]
[1743772332094,11.99101,1784.6,1784.1,5.71091657]
[1743772332299,6.802941,1784.5,1784.1,5.71091657]
[1743772332542,6.802941,1784.5,1784.1,0.05]
[1743772332543,12.407011,1784.5,1784.1,0.05]
[1743772332745,6.37253,1784.3,1784.1,0.05]
[1743772333447,11.9772,1784.3,1784.1,0.05]
[1743772333806,0.7679,1784.3,1784.1,0.05]
[1743772334225,0.782,1784.4,1784.1,5.65489]
[1743772334748,6.38615,1784.4,1784.1,0.05]
[1743772335103,0.782,1784.4,1784.1,0.05]
[1743772335447,12.29871,1784.6,1784.1,6.781109]
[1743772335606,0.771,1784.5,1784.1,5.65505]
[1743772336025,0.771,1784.5,1784.1,5.65491]
[1743772336198,0.771,1784.5,1784.3,5.60441]
[1743772336402,0.771,1784.5,1784.2,5.66069031]
[1743772336841,6.695,1784.6,1784.3,5.6043]
[1743772337203,9.3755,1784.7,1784.3,12.3854991]
[1743772337204,3.7723,1784.7,1784.3,12.3854991]
[1743772337537,9.37559,1784.7,1784.3,1.120901]
[1743772337745,5.60349,1784.6,1784.2,6.12432469]
[1743772337941,5.60349,1784.6,1784.2,5.60461]
[1743772338542,5.60385,1784.5,1784.1,6.17473469]
[1743772338716,5.60385,1784.5,1784.1,5.65502]
[1743772339638,5.60349,1784.6,1784.1,5.65495]
[1743772339801,5.60349,1784.6,1784.2,5.60463]
[1743772340448,5.60349,1784.6,1784.1,6.27241647]
[1743772340608,0.7513,1784.6,1784.1,0.05]
[1743772340814,0.7513,1784.3,1784.1,0.05]
[1743772341121,6.35574,1784.3,1784.1,0.05]
[1743772341536,6.39045,1784.2,1784.1,0.05]
[1743772341843,9.39045,1784.2,1784.1,0.05]
[1743772342012,16.00044,1784.2,1784.1,0.05]
[1743772342213,0.8152,1783.6,1783.1,0.52021309]
[1743772342449,6.42258,1783.4,1783.1,0.52021309]
[1743772342617,5.60789,1783.2,1783.1,0.52021309]
[1743772342816,3.7538,1783.2,1783.0,0.0083583]
[1743772343226,0.11828476,1783.1,1783.0,0.0083583]
[1743772343429,9.3618,1783.2,1783.0,0.0083583]
[1743772343628,0.11864089,1783.1,1783.0,0.0083583]
[1743772343816,3.0,1783.3,1783.0,0.0083583]
[1743772344043,6.51295756,1783.2,1783.0,0.0083583]
[1743772344213,5.60821,1783.1,1783.0,0.0083583]
[1743772344411,5.7253458,1783.1,1783.0,0.0083583]
[1743772345446,0.53300176,1783.1,1783.0,0.0083583]
[1743772345646,6.14121176,1783.1,1783.0,0.0083583]
[1743772345845,1.78669494,1783.1,1783.0,0.0083583]
[1743772346013,7.39490494,1783.1,1783.0,0.0083583]
[1743772346211,0.1171358,1783.1,1783.0,0.0083583]
[1743772346413,0.7876,1783.2,1783.0,0.0083583]
[1743772346681,0.1178009,1783.1,1783.0,0.0083583]
[1743772346857,5.60728,1783.4,1783.0,5.6167583]
[1743772347147,0.11787649,1783.1,1783.0,5.6167583]
[1743772347354,5.60771,1783.3,1783.0,0.0083583]
[1743772347554,0.1179655,1783.1,1783.0,0.0083583]
[1743772347855,0.11820402,1783.1,1783.0,0.0083583]
[1743772348031,5.60771,1783.3,1783.0,0.0083583]
[1743772348239,0.11909397,1783.1,1783.0,0.0083583]
[1743772348413,9.4286,1783.5,1783.0,0.57005813]
[1743772348615,0.12042288,1783.4,1783.2,5.60784]
[1743772348811,0.12042288,1783.4,1783.2,5.60778]
[1743772349048,12.29675,1783.6,1783.2,5.60778]
[1743772349346,0.12036539,1783.3,1783.2,11.21555]
[1743772349555,6.69,1783.6,1783.3,5.60742]
[1743772349749,0.12005403,1783.3,1783.1,5.60807]
[1743772349958,5.60706,1783.5,1783.1,11.21616]
[1743772350117,0.11901787,1783.2,1783.1,5.60807]
[1743772350317,5.60706,1783.5,1783.1,5.60807]
[1743772350530,0.11866187,1783.2,1783.0,5.6168283]
[1743772350863,6.7702545,1783.5,1783.1,5.60818]
[1743772351230,12.3774045,1783.5,1783.1,5.60818]
[1743772351464,5.60731,1783.4,1783.0,5.6166983]
[1743772351673,6.7702545,1783.5,1783.0,0.0083583]
[1743772351674,6.41342,1783.3,1783.0,0.0083583]
[1743772351833,6.249242,1783.2,1783.0,0.0083583]
[1743772352159,5.60821,1783.1,1783.0,0.0083583]
[1743772353486,6.41531,1783.1,1783.0,0.0083583]
[1743772353679,6.03661441,1783.1,1783.0,0.0083583]
[1743772353974,14.857442,1783.2,1783.0,0.0083583]
[1743772354329,1.4857442,1783.1,1783.0,0.0083583]
[1743772354537,7.0939542,1783.1,1783.0,0.0083583]
[1743772354762,1.4857442,1783.1,1782.5,5.61006]
[1743772354972,12.02824,1783.0,1782.5,5.61006]
[1743772355153,0.8255,1782.8,1782.4,5.61024]
[1743772355347,0.8255,1782.8,1782.0,5.61141]
[1743772355348,5.60949,1782.7,1782.2,5.6108]
[1743772356278,3.8255,1782.8,1782.4,5.6104]
[1743772356461,3.8255,1782.8,1782.4,6.17144]
[1743772356669,3.8255,1782.8,1782.4,5.6104]
[1743772356872,9.43481,1782.8,1782.3,5.61062]
[1743772357045,5.6095,1782.7,1782.3,5.61062]
[1743772357668,9.43481,1782.8,1782.4,5.61029]
[1743772358018,15.04418,1782.8,1782.3,11.22113]
[1743772358155,9.28616383,1782.8,1782.4,5.61037]
[1743772358351,0.11041481,1782.7,1782.4,5.61037]
[1743772358802,5.71988481,1782.7,1782.3,6.732643]
[1743772358967,5.71988481,1782.7,1782.2,5.61104]
[1743772359503,0.11041481,1782.7,1782.4,5.61035]
[1743772359674,0.11041481,1782.7,1782.5,5.60998]
[1743772360065,0.11041481,1782.7,1782.4,5.61035]
[1743772360369,5.71991481,1782.7,1782.3,5.61072]
[1743772360572,0.11041481,1782.7,1782.5,5.60986]
[1743772361003,8.60854,1783.0,1782.6,5.60974]
[1743772361305,9.3878,1783.0,1782.6,5.60974]
[1743772361453,3.7791,1783.0,1782.6,11.21935]
[1743772361659,10.4651,1783.0,1782.7,11.21871]
[1743772361858,3.7791,1783.0,1782.7,5.60932]
[1743772362904,3.7791,1783.0,1782.7,5.60943]
[1743772363109,0.7791,1783.0,1782.7,5.6094]
[1743772363283,6.37221,1783.2,1782.8,5.60911]
[1743772363492,6.37221,1783.2,1782.9,0.560911]
[1743772363493,0.7643,1783.2,1782.9,0.560911]
[1743772363689,0.7643,1783.2,1782.9,6.169721]
[1743772363893,6.37239,1783.2,1782.9,0.560911]
[1743772365112,0.7643,1783.2,1782.9,0.560911]
[1743772365310,0.7601,1783.4,1783.0,5.66455886]
[1743772365524,9.36762,1783.4,1783.0,11.83938699]
[1743772365695,9.36762,1783.4,1783.0,6.23090699]
[1743772366021,0.7601,1783.4,1783.0,0.67862514]
[1743772366330,6.684,1783.5,1783.2,5.60789]
[1743772366482,6.77604501,1783.6,1783.2,5.66396313]
[1743772366821,13.45904501,1783.6,1783.2,5.60789]
[1743772367007,7.85227501,1783.6,1783.1,5.60794]
[1743772367314,4.16927501,1783.6,1783.2,11.27156162]
[1743772367521,4.16927501,1783.6,1783.2,11.21542]
[1743772367693,9.77593501,1783.6,1783.2,5.60771]
[1743772367876,9.77593501,1783.6,1783.2,11.21546]
[1743772368079,4.16927501,1783.6,1783.3,5.60755]
[1743772368387,3.7513,1783.6,1783.3,5.60755]
[1743772368590,3.0,1783.6,1783.3,5.66361876]
[1743772368789,3.0,1783.6,1783.3,5.60755]
[1743772368991,8.60665,1783.6,1783.2,5.60771]
[1743772369211,3.0,1783.6,1783.1,0.6230487]
[1743772369392,3.0,1783.6,1782.6,13.441425]
[1743772369393,5.6076,1783.3,1782.9,5.6087]
[1743772369978,5.6076,1783.3,1782.9,5.60865]
[1743772370286,6.37758,1783.4,1783.0,5.60847]
[1743772370712,6.68,1783.5,1783.2,5.60775]
[1743772370883,6.68,1783.5,1783.2,5.66382303]
[1743772371081,6.68,1783.5,1783.2,5.60775]
[1743772371404,6.68,1783.5,1783.2,11.21547]
[1743772371722,12.28705,1783.5,1783.1,5.60818]
[1743772371918,17.89424,1783.5,1783.1,1.17362384]
[1743772372113,5.60734,1783.4,1783.0,6.12807844]
[1743772372318,5.60734,1783.4,1783.0,5.60849]
[1743772372483,0.8204,1783.3,1782.9,5.6088]
[1743772372684,6.42828,1783.3,1782.8,6.12927263]
[1743772373099,5.71631903,1783.2,1782.8,5.60913]
[1743772373280,11.32446903,1783.2,1782.8,1.17387226]
[1743772373483,5.71631903,1783.2,1782.7,6.12942263]
[1743772373711,11.32440903,1783.2,1782.8,5.66519459]
[1743772373914,0.10824903,1783.2,1782.9,5.60853]
[1743772374422,5.71623903,1783.2,1782.8,5.66514459]
[1743772374732,0.10824903,1783.2,1782.8,5.66507459]
[1743772375028,0.10824903,1783.2,1782.9,5.6088]
[1743772375330,5.71616903,1783.2,1782.8,6.22751172]
[1743772375498,0.10824903,1783.2,1782.8,6.28359626]
[1743772375697,0.10824903,1783.2,1782.9,5.60879]
[1743772375918,0.10824903,1783.2,1782.9,5.60869]
[1743772376103,0.10824903,1783.2,1783.0,6.169369]
[1743772376523,0.10824903,1783.2,1783.0,0.560869]
[1743772376836,0.10824903,1783.2,1783.0,11.777579]
[1743772377017,0.10824903,1783.2,1783.1,5.6642868]
[1743772377419,9.42255,1783.6,1783.2,5.60772]
[1743772377601,12.02937,1783.6,1783.2,1.121592]
[1743772377808,0.11054482,1783.5,1783.0,11.777689]
[1743772378005,5.60736,1783.4,1783.0,6.169229]
[1743772378327,5.60736,1783.4,1782.9,5.60878]
[1743772378328,5.71766889,1783.3,1782.9,5.6088]
[1743772378533,6.51116889,1783.3,1782.9,5.6088]
[1743772378732,0.90336889,1783.3,1782.9,0.05608026]
[1743772378889,0.10986889,1783.3,1783.0,5.60821]
[1743772379322,0.10986889,1783.3,1782.8,6.12979562]
[1743772379632,5.71754889,1783.3,1782.9,0.61297956]
[1743772380141,6.39021,1783.2,1782.9,0.61297956]
[1743772380500,5.71781614,1783.1,1782.8,0.52067562]
[1743772381019,0.10957614,1783.1,1782.8,0.52067562]
[1743772381194,0.10957614,1783.1,1782.7,11.79545528]
[1743772381396,0.7823,1783.2,1782.7,6.13000562]
[1743772381589,0.7823,1783.2,1782.8,0.52067562]
[1743772381833,7.13594,1783.2,1782.8,0.52067562]
[1743772382130,12.74401,1783.2,1782.7,5.60943]
[1743772382490,6.35995,1782.9,1782.5,0.52067562]
[1743772382921,6.35995,1782.9,1782.4,11.22057]
[1743772383126,0.751,1782.9,1782.5,5.66606416]
[1743772383502,6.35998,1782.9,1782.5,5.60997]
[1743772383702,0.751,1782.9,1782.7,5.60943]
[1743772383892,6.40125,1783.1,1782.6,5.60972]
[1743772384270,6.40125,1783.1,1782.7,0.0560879]
[1743772384430,5.60855,1783.0,1782.6,6.170612]
[1743772384620,6.40125,1783.1,1782.7,0.0560879]
[1743772384823,0.7929,1783.1,1782.7,5.6654079]
[1743772385020,0.7929,1783.1,1782.8,5.60905]
[1743772385221,0.7929,1783.1,1782.8,12.34552479]
[1743772385421,0.7929,1783.1,1782.8,1.12745479]
[1743772385838,6.40126,1783.1,1782.6,11.780412]
[1743772386010,6.40126,1783.1,1782.7,5.60938]
[1743772386803,6.40126,1783.1,1782.7,5.60935]
[1743772387005,6.40126,1783.1,1782.7,5.60932]
[1743772388257,0.12764942,1783.0,1782.7,5.60932]
[1743772388462,0.12764942,1783.0,1782.7,6.7873222]
[1743772388604,0.12764942,1783.0,1782.6,6.170702]
[1743772388814,5.60885,1782.9,1782.6,1.0826944]
[1743772389151,0.12693307,1782.8,1782.6,0.5217224]
[1743772389320,11.21735,1783.0,1782.6,0.05609082]
[1743772389522,0.7929,1783.1,1782.6,5.60974]
[1743772389523,0.12735337,1782.7,1782.6,5.60974]
[1743772389850,0.7929,1783.1,1782.9,5.6087]
[1743772390053,0.7929,1783.1,1782.9,5.66478262]
[1743772390207,0.7929,1783.1,1783.0,5.60852]
[1743772390405,0.7699,1783.3,1783.1,5.60805]
[1743772390643,0.7699,1783.3,1783.0,5.60841]
[1743772390850,0.7699,1783.3,1783.0,11.2168]
[1743772391346,0.7699,1783.3,1783.1,5.60816]
[1743772391555,0.7699,1783.3,1783.0,5.60839]
[1743772391716,0.7699,1783.3,1783.1,0.61691566]
[1743772391910,0.8298,1783.5,1783.2,5.60765]
[1743772392111,0.8298,1783.7,1783.3,0.05607137]
[1743772392419,6.43616,1783.7,1783.3,11.27089137]
[1743772392636,6.43616,1783.7,1783.2,0.52144958]
[1743772392838,5.60674,1783.6,1783.2,6.12918958]
[1743772393043,6.37966,1783.4,1783.0,11.21684]
[1743772393210,0.7724,1783.4,1783.1,5.66424416]
[1743772393610,0.7724,1783.4,1783.1,6.18585803]
[1743772394257,0.7724,1783.4,1783.1,6.18586023]
[1743772394751,0.7724,1783.4,1783.1,5.66424636]
[1743772394947,0.7724,1783.4,1783.1,11.27231636]
[1743772395121,0.7724,1783.4,1783.1,11.21616]
[1743772395321,0.7724,1783.4,1783.1,5.60807]
[1743772395533,0.7724,1783.4,1783.1,11.27225638]
[1743772395732,0.7724,1783.4,1783.2,5.60787]
[1743772395941,0.7724,1783.4,1783.1,6.73529564]
[1743772396347,5.60676,1783.6,1783.1,1.70436589]
[1743772396556,5.60676,1783.6,1783.1,6.12926701]
[1743772396724,5.60696,1783.5,1783.1,11.21631]
[1743772397165,11.63289137,1783.6,1783.2,5.60787]
[1743772397537,5.60698,1783.5,1783.2,5.60787]
[1743772397965,11.21411,1783.5,1783.1,5.60811]
[1743772398154,11.21413,1783.5,1783.1,6.12917701]
[1743772398350,5.60698,1783.5,1783.1,6.12912701]
[1743772398557,0.8014,1783.4,1783.1,5.60806]
[1743772398757,0.8014,1783.4,1783.1,11.21314638]
[1743772398951,0.8014,1783.4,1783.1,11.21318638]
[1743772399648,0.8014,1783.4,1783.1,5.60508638]
[1743772399850,6.40882,1783.4,1783.0,11.21692]
[1743772400033,0.640882,1783.3,1783.1,5.60813]
[1743772400219,0.8014,1783.4,1783.1,11.21619]
[1743772400424,0.8014,1783.4,1783.1,11.21616]
[1743772400671,0.8014,1783.4,1783.1,5.60806]
[1743772400878,6.4087,1783.4,1783.1,5.60806]
[1743772401229,4.05607643,1783.4,1783.0,0.5213156]
[1743772401570,4.05607643,1783.4,1782.5,3.25467643]
[1743772401571,0.8069,1783.1,1782.7,6.1307556]
[1743772401770,6.41525,1783.1,1782.7,11.7401156]
[1743772402131,0.8069,1783.1,1782.8,5.60893]
[1743772402329,6.02596137,1783.6,1782.9,0.05608461]
[1743772402537,7.4552,1783.5,1783.2,5.60765]
[1743772402865,0.7932,1783.5,1783.3,5.60748]
[1743772403106,6.39968,1783.7,1783.4,5.60716]
[1743772403289,6.82489459,1783.7,1783.4,5.60716]
[1743772403667,6.82489459,1783.7,1783.3,11.21496]
[1743772404325,5.60675,1783.6,1783.2,11.7368956]
[1743772404604,5.60675,1783.6,1783.2,5.60774]
[1743772404800,8.86142643,1783.6,1783.2,5.60774]
[1743772404953,5.60705,1783.5,1783.2,5.60774]
[1743772405157,6.40088,1783.4,1783.1,5.60816]
[1743772405582,12.00839,1783.4,1782.9,0.52095861]
[1743772405900,12.00839,1783.4,1782.9,6.12974861]
[1743772406196,9.65560643,1783.4,1782.9,6.18558579]
[1743772406399,5.60761,1783.3,1782.9,6.12950861]
[1743772406714,0.7936,1783.4,1783.0,6.22134086]
[1743772406861,0.7936,1783.4,1783.0,11.82971086]
[1743772407201,0.7936,1783.4,1783.1,5.60815]
[1743772407502,0.7936,1783.4,1783.0,11.82972086]
[1743772407798,0.7936,1783.4,1783.1,5.60817]
[1743772407963,0.7936,1783.4,1783.0,5.60837]
[1743772408160,0.7936,1783.4,1783.0,5.66453869]
[1743772408378,0.7936,1783.4,1783.1,5.60808]
[1743772408575,6.40091,1783.4,1783.0,5.60849]
[1743772408964,6.40091,1783.4,1783.0,11.2169]
[1743772409198,0.7936,1783.4,1783.1,5.60806]
[1743772409517,0.7936,1783.4,1783.1,11.21612]
[1743772409878,0.7936,1783.4,1783.3,5.60758]
[1743772410194,0.7801,1783.6,1783.3,11.21516]
[1743772410382,0.7801,1783.6,1783.4,5.60723]
[1743772410617,6.38683,1783.6,1783.3,5.60758]
[1743772411081,6.38683,1783.6,1783.2,5.6078]
[1743772411284,5.60697,1783.5,1783.2,5.6078]
[1743772411485,0.805,1783.3,1783.0,6.12951402]
[1743772411787,0.805,1783.3,1783.0,6.12940402]
[1743772411988,6.41262,1783.3,1783.0,5.60837]
[1743772412299,0.805,1783.3,1783.0,11.21674]
[1743772412515,0.805,1783.3,1783.0,12.338414]
[1743772412721,6.41265,1783.3,1782.9,11.73857402]
[1743772412923,0.805,1783.3,1783.0,5.60848]
[1743772413121,0.805,1783.3,1783.1,5.60818]
[1743772413418,0.7707,1783.5,1783.3,5.60747]
[1743772413920,0.7707,1783.5,1783.3,5.60745]
[1743772414690,0.7707,1783.5,1783.2,5.60782]
[1743772415189,0.7707,1783.5,1783.2,11.21557]
[1743772415389,0.7707,1783.5,1783.2,11.21555]
[1743772415631,6.37772,1783.5,1783.2,5.60777]
[1743772416331,6.37772,1783.5,1783.1,6.12993955]
[1743772416523,5.60728,1783.4,1783.1,6.12993955]
[1743772416696,5.60728,1783.4,1783.1,5.60814]
[1743772417236,11.98498,1783.5,1783.1,11.2162]
[1743772417433,0.7707,1783.5,1783.2,0.52168636]
[1743772417623,0.7707,1783.5,1783.3,5.6074]
[1743772417823,0.7707,1783.5,1783.3,11.21487]
[1743772418005,0.7707,1783.5,1783.3,6.12908636]
[1743772418647,0.7707,1783.5,1783.3,5.6074]
[1743772419151,0.7707,1783.5,1783.4,5.60726]
[1743772419317,0.7707,1783.5,1783.3,11.21486]
[1743772419719,3.0,1783.8,1783.5,5.60684]
[1743772419918,3.0,1783.8,1783.4,5.60721]
[1743772420323,5.60644,1783.7,1783.4,5.60721]
[1743772421057,5.60669,1783.6,1783.3,5.60755]
[1743772421347,7.524003,1783.6,1783.2,11.21553]
[1743772421555,13.130813,1783.6,1783.3,5.60757]
[1743772421874,1.917313,1783.6,1783.3,6.12913206]
[1743772422153,0.796,1783.6,1783.1,6.18593591]
[1743772422358,0.7514,1783.2,1783.1,0.52175206]
[1743772422508,0.7514,1783.2,1783.0,5.60837]
[1743772422713,0.7514,1783.2,1783.0,5.6085]
[1743772423137,0.7514,1783.2,1782.9,11.2175]
[1743772423401,0.7514,1783.2,1782.5,11.76982]
[1743772423402,5.60831,1783.1,1782.7,5.60937]
[1743772423607,6.995255,1783.2,1782.8,5.60903]
[1743772423831,0.7514,1783.2,1782.9,0.05608473]
[1743772424022,0.7514,1783.2,1782.9,5.6087]
[1743772424221,11.96743,1783.2,1782.9,5.6087]
[1743772424444,11.96743,1783.2,1782.9,0.52206067]
[1743772424605,11.96742,1783.2,1782.9,6.13089067]
[1743772424811,5.60825,1783.1,1782.8,5.60911]
[1743772425406,5.60825,1783.1,1782.8,6.13107584]
[1743772425620,6.35935,1783.2,1782.9,5.60872]
[1743772425822,0.7514,1783.2,1782.9,6.13068584]
[1743772426055,7.4594,1783.4,1783.1,5.60791]
[1743772426264,7.4594,1783.4,1783.3,5.60758]
[1743772426462,6.65,1783.4,1783.3,5.60758]
[1743772426624,6.35714,1783.6,1783.3,5.60758]
[1743772426826,5.47587705,1783.6,1783.0,6.22154858]
[1743772427022,9.35717,1783.6,1783.2,5.6076]
[1743772427456,9.35717,1783.6,1783.2,11.21525]
[1743772427646,3.7505,1783.6,1783.3,5.60731]
[1743772427853,9.35714,1783.6,1783.3,5.60731]
[1743772428050,0.7505,1783.6,1783.4,11.21441]
[1743772428263,0.7505,1783.6,1783.4,5.60715]
[1743772428471,0.7505,1783.6,1783.4,11.2143]
[1743772429405,0.7505,1783.6,1783.4,5.60715]
[1743772429950,0.7505,1783.6,1783.4,5.60711]
[1743772430649,0.7505,1783.6,1783.5,5.60695]
[1743772431280,0.7505,1783.6,1783.4,11.21425]
[1743772431934,0.7505,1783.6,1783.4,11.73533672]
[1743772432469,0.7505,1783.6,1783.4,5.60711]
[1743772432778,0.7505,1783.6,1783.4,11.21423]
[1743772432946,0.7505,1783.6,1783.4,5.60711]
[1743772434547,0.7505,1783.6,1783.4,11.21421]
[1743772435053,0.7505,1783.6,1783.4,5.6071]
[1743772435282,0.7505,1783.6,1783.4,11.21421]
[1743772435784,0.7505,1783.6,1783.5,5.60695]
[1743772435955,0.7505,1783.6,1783.4,11.21426]
[1743772436161,0.7505,1783.6,1783.4,11.21423]
[1743772436569,0.7505,1783.6,1783.5,5.60695]
[1743772438952,3.0,1783.9,1783.6,5.60644]
[1743772439178,0.8179,1784.0,1783.8,5.60583]
[1743772439786,0.8179,1784.0,1783.9,5.60569]
[1743772439983,0.8179,1784.0,1783.8,5.60583]
[1743772440294,0.8179,1784.0,1783.6,0.52067143]
[1743772440295,5.6057,1783.9,1783.6,6.12724143]
[1743772440491,5.6057,1783.9,1783.6,11.73377143]
[1743772440719,13.75633971,1784.0,1783.6,11.2131]
[1743772440867,5.60574,1783.9,1783.6,5.60653]
[1743772441070,5.60574,1783.9,1783.5,5.60691]
[1743772441071,6.42297,1783.8,1783.5,5.60691]
[1743772441271,3.89606157,1783.7,1783.4,0.52067143]
[1743772441470,3.89606157,1783.7,1783.3,11.21496]
[1743772441471,9.50251157,1783.7,1783.3,11.21496]
[1743772441668,9.50251157,1783.7,1783.3,11.73563143]
[1743772442410,3.8169,1783.8,1783.6,11.21296]
[1743772442609,0.8169,1783.8,1783.7,5.60632]
[1743772442983,0.8169,1783.8,1783.5,5.60684]
[1743772443190,6.42303,1783.8,1783.5,5.60684]
[1743772443395,0.8169,1783.8,1783.5,5.60684]
[1743772443709,0.8169,1783.8,1783.6,5.60654]
[1743772443908,0.8169,1783.8,1783.6,11.21308]
[1743772444112,0.8169,1783.8,1783.7,5.60632]
[1743772444313,7.455,1784.1,1783.9,5.60543]
[1743772444612,28.47776457,1784.3,1784.0,5.60538]
[1743772444613,0.7508,1784.3,1784.0,5.60538]
[1743772444785,6.35535,1784.3,1784.0,5.60538]
[1743772444980,0.7508,1784.3,1784.0,5.60525]
[1743772445308,0.7508,1784.3,1784.1,5.60492]
[1743772445517,6.40822,1784.8,1784.4,5.60394]
[1743772445713,6.40822,1784.8,1784.1,1.64187724]
[1743772445714,0.8052,1784.8,1784.1,1.64187724]
[1743772445885,6.40821,1784.8,1784.4,5.60392]
[1743772446091,6.40821,1784.8,1784.5,5.60379]
[1743772446092,3.0,1784.7,1784.5,5.60379]
[1743772446608,3.0,1784.7,1784.4,5.60392]
[1743772446925,6.40821,1784.8,1784.4,11.20791]
[1743772447102,5.51725846,1784.8,1784.5,5.60371]
[1743772447819,3.8052,1784.8,1784.5,5.6037]
[1743772448234,0.7621,1784.7,1784.1,5.60477]
[1743772448434,5.60413,1784.4,1784.0,5.60518]
[1743772448639,0.7621,1784.3,1784.0,5.60518]
[1743772448840,6.36658,1784.3,1783.9,11.21138]
[1743772448996,0.7621,1784.3,1783.9,5.60569]
[1743772449197,0.7621,1784.3,1784.1,5.60506]
[1743772449547,0.7621,1784.3,1784.0,5.60537]
[1743772449833,6.36665,1784.3,1783.9,5.60554]
[1743772450135,6.36665,1784.3,1783.9,11.21112]
[1743772450525,6.36665,1784.3,1783.9,5.60554]
[1743772450708,3.7621,1784.3,1783.4,0.55]
[1743772450898,5.60561,1784.0,1783.5,5.60665]
[1743772451094,5.60561,1784.0,1783.6,5.60661]
[1743772451299,13.01043,1783.9,1783.5,5.60665]
[1743772451529,13.01043,1783.9,1783.5,11.21344]
[1743772451830,7.4045,1783.9,1783.6,5.60662]
[1743772452206,13.0102,1783.9,1783.5,5.6069]
[1743772452408,7.4045,1783.9,1783.6,5.60649]
[1743772452609,7.4045,1783.9,1783.8,5.606]
[1743772452818,7.4045,1783.9,1783.7,5.6063]
[1743772453029,6.63,1783.9,1783.8,5.606]
[1743772453537,0.7852,1784.1,1783.9,5.60548]
[1743772453832,0.7852,1784.3,1784.1,5.60494]
[1743772454036,0.7852,1784.3,1784.2,5.60475]
[1743772454248,7.3892,1784.5,1784.2,11.20938]
[1743772454525,7.3892,1784.5,1784.2,5.60463]
[1743772454900,7.3892,1784.5,1784.3,5.60431]
[1743772455094,7.3892,1784.5,1784.2,5.60463]
[1743772455716,3.7602,1784.5,1784.3,5.60441]
[1743772455914,3.791,1784.7,1784.4,5.60412]
[1743772456126,3.791,1784.7,1784.4,11.20808]
[1743772456394,0.791,1784.7,1784.4,5.60402]
[1743772456590,9.39432,1784.7,1784.2,6.165093]
[1743772456826,5.393232,1784.7,1784.3,5.60423]
[1743772457037,3.791,1784.7,1784.4,5.60412]
[1743772457534,3.791,1784.7,1784.3,11.2085]
[1743772457735,3.791,1784.7,1784.2,5.60451]
[1743772457921,3.791,1784.7,1784.4,5.6041]
[1743772458728,0.791,1784.7,1784.4,5.6041]
[1743772458922,0.791,1784.7,1784.4,6.724914]
[1743772459110,0.791,1784.7,1784.4,5.60409]
[1743772459305,3.0,1784.8,1784.2,5.60475]
[1743772459621,7.3947,1784.9,1784.5,5.60364]
[1743772459819,7.3947,1784.9,1784.5,11.20728]
[1743772460131,7.3947,1784.9,1784.5,5.60364]
[1743772460328,9.39586,1785.1,1784.3,5.60438]
[1743772460530,14.99799,1785.1,1784.6,5.60335]
[1743772460701,14.99797,1785.1,1784.6,5.65937894]
[1743772461033,5.60224,1785.0,1784.6,0.05602894]
[1743772461331,8.17463887,1785.0,1784.5,5.60377]
[1743772461494,8.17463887,1785.0,1784.5,11.20742]
[1743772461695,2.57239887,1785.0,1784.6,5.65933895]
[1743772462025,5.60148,1785.3,1784.8,11.20562]
[1743772462228,11.20301,1785.3,1784.8,5.60276]
[1743772462540,5.60101,1785.4,1784.9,5.60241]
[1743772462737,3.0,1785.3,1784.9,5.60241]
[1743772462925,1.46293671,1785.3,1784.9,5.60241]
[1743772463098,4.46293671,1785.3,1784.9,5.60241]
[1743772463300,0.7956,1785.2,1784.8,5.60273]
[1743772463541,6.39723,1785.2,1784.8,5.60273]
[1743772463741,0.7956,1785.2,1784.8,5.60273]
[1743772463909,0.7956,1785.2,1784.8,5.65875051]